bitfinex/quotes_BTCUSD_20220306
["timestamp","ask_amount","ask_price","bid_price","bid_amount"]
[1646573392379,0.0021,38830.0,38829.0,0.52287855]
[1646573393220,0.0021,38830.0,38829.0,0.54880855]
[1646573394222,0.0021,38830.0,38829.0,0.52287855]
[1646573394621,0.0021,38830.0,38829.0,0.3]
[1646573395823,0.0021,38830.0,38829.0,0.51638133]
[1646573398072,0.0021,38830.0,38829.0,0.52556766]
[1646573399072,0.0021,38830.0,38829.0,0.51638133]
[1646573399274,0.0021,38830.0,38827.0,0.1911385]
[1646573399673,0.0021,38830.0,38825.0,0.004]
[1646573400081,0.0021,38830.0,38819.0,0.3559]
[1646573400276,0.0021,38830.0,38822.0,0.19193931]
[1646573400277,0.15779533,38830.0,38822.0,0.19193931]
[1646573400540,0.00023758,38829.0,38825.0,0.19550756]
[1646573401341,0.0021,38830.0,38825.0,0.19550756]
[1646573401543,0.00023758,38829.0,38822.0,0.19193931]
[1646573401940,0.00023758,38829.0,38822.0,0.49193931]
[1646573402541,0.0021,38830.0,38827.0,0.18549282]
[1646573403342,0.0021,38830.0,38828.0,0.1820166]
[1646573403942,0.0021,38830.0,38828.0,0.4820166]
[1646573404143,0.0021,38830.0,38829.0,0.3]
[1646573405186,0.00153894,38831.0,38830.0,1.15]
[1646573405384,0.00153894,38831.0,38830.0,1.45]
[1646573405784,0.00153894,38831.0,38830.0,1.47593]
[1646573406190,0.0014,38831.0,38830.0,1.48511633]
[1646573406385,0.0014,38831.0,38830.0,0.30918633]
[1646573407485,0.0014,38831.0,38830.0,0.33511633]
[1646573408340,0.0014,38831.0,38830.0,1.12181633]
[1646573408838,0.0014,38831.0,38830.0,0.30918633]
[1646573409235,0.11143501,38831.0,38830.0,0.30918633]
[1646573409435,0.22147002,38831.0,38830.0,0.30918633]
[1646573410637,0.22107002,38831.0,38830.0,1.09588633]
[1646573411036,0.22107002,38831.0,38830.0,0.30918633]
[1646573414289,0.22107002,38831.0,38830.0,0.00918633]
[1646573414891,0.22107002,38831.0,38825.0,0.01]
[1646573415293,0.001,38831.0,38825.0,0.01]
[1646573415530,0.11003501,38828.0,38825.0,0.01]
[1646573415732,0.11003501,38828.0,38826.0,0.16009112]
[1646573416330,0.11003501,38828.0,38826.0,0.15963812]
[1646573418230,0.11003501,38828.0,38823.0,0.195164]
[1646573418630,0.11003501,38828.0,38821.0,0.128867]
[1646573419031,0.11003501,38828.0,38818.0,0.306]
[1646573419279,0.11003501,38828.0,38822.0,0.15921975]
[1646573419675,0.00023753,38826.0,38823.0,0.18736472]
[1646573420474,0.01233,38831.0,38823.0,0.18736472]
[1646573420677,0.01233,38831.0,38828.0,0.18483104]
[1646573421275,0.001,38831.0,38828.0,0.18483104]
[1646573421479,0.00049,38831.0,38828.0,0.18483104]
[1646573421675,0.00049,38831.0,38829.0,0.16852738]
[1646573422076,0.00072752,38831.0,38829.0,0.16852738]
[1646573422278,0.00072752,38831.0,38828.0,0.18483104]
[1646573422876,0.00049,38831.0,38828.0,0.18483104]
[1646573423123,0.00072755,38831.0,38828.0,0.18483104]
[1646573424224,0.00049,38831.0,38825.0,0.064437]
[1646573424428,0.00049,38831.0,38826.0,0.19609115]
[1646573424429,0.00072755,38831.0,38826.0,0.19609115]
[1646573424626,0.00072755,38831.0,38823.0,0.3]
[1646573424926,0.00072755,38831.0,38822.0,0.306]
[1646573425325,0.00049,38831.0,38826.0,0.16328627]
[1646573425528,0.00023756,38828.0,38826.0,0.16328627]
[1646573425929,0.22007002,38827.0,38826.0,0.16328627]
[1646573426125,0.22007002,38827.0,38826.0,0.1724726]
[1646573426328,0.19992566,38827.0,38826.0,0.1724726]
[1646573426784,0.0042,38834.0,38829.0,1.15]
[1646573426982,0.0042,38834.0,38830.0,0.3]
[1646573427778,0.0042,38834.0,38833.0,0.00918633]
[1646573427978,0.00443754,38834.0,38833.0,0.00918633]
[1646573428380,0.00443754,38834.0,38833.0,0.30918633]
[1646573428779,0.00443754,38834.0,38833.0,0.30418633]
[1646573428978,0.0042,38834.0,38833.0,0.30418633]
[1646573429180,0.01362,38842.0,38835.0,1.15]
[1646573429383,0.0022,38842.0,38839.0,0.00418633]
[1646573429686,0.0022,38842.0,38841.0,1.15]
[1646573429687,0.0011,38842.0,38841.0,1.15]
[1646573429879,0.0011,38842.0,38841.0,1.45418633]
[1646573430381,0.0043,38844.0,38843.0,0.7867]
[1646573430621,0.0043,38844.0,38843.0,0.3]
[1646573431022,0.0021,38844.0,38843.0,0.3]
[1646573431223,0.001,38845.0,38844.0,1.15]
[1646573431624,0.0032,38847.0,38846.0,1.15]
[1646573431823,0.0032,38847.0,38846.0,1.45]
[1646573432124,0.0032,38847.0,38846.0,1.45418633]
[1646573432524,0.0032,38847.0,38846.0,2.24088633]
[1646573433224,0.0032,38847.0,38846.0,2.33588633]
[1646573433825,0.0032,38847.0,38846.0,1.54918633]
[1646573434877,0.0032,38847.0,38846.0,2.33588633]
[1646573435277,0.0032,38847.0,38846.0,1.54918633]
[1646573435875,0.0032,38847.0,38846.0,2.36181633]
[1646573436278,0.001,38854.0,38846.0,2.36181633]
[1646573436279,0.02750481,38849.0,38848.0,1.96263]
[1646573436477,0.001,38854.0,38849.0,1.9367]
[1646573436677,0.001,38854.0,38849.0,2.0367]
[1646573436678,0.0032,38851.0,38849.0,2.0367]
[1646573436878,0.0032,38851.0,38850.0,1.0867]
[1646573437279,0.0032,38851.0,38850.0,0.18640751]
[1646573438620,0.0032,38851.0,38850.0,0.48640751]
[1646573439219,0.001,38854.0,38852.0,1.9367]
[1646573439220,0.0011,38853.0,38852.0,1.9367]
[1646573439720,0.0011,38853.0,38852.0,1.94088633]
[1646573439919,0.0033,38855.0,38853.0,1.9367]
[1646573439920,0.0022,38855.0,38853.0,1.9367]
[1646573440123,0.0022,38855.0,38854.0,1.0867]
[1646573440320,0.01258,38861.0,38854.0,1.0867]
[1646573440520,0.0011,38861.0,38854.0,0.3]
[1646573440721,0.0011,38861.0,38854.0,1.0867]
[1646573440919,0.0011,38861.0,38854.0,0.364377]
[1646573441625,0.0011,38861.0,38855.0,0.81263]
[1646573441875,0.0011,38861.0,38858.0,0.851065]
[1646573442074,0.01362,38866.0,38859.0,1.0867]
[1646573442278,0.0021,38866.0,38859.0,1.1867]
[1646573442475,0.02449142,38863.0,38860.0,0.15545159]
[1646573442680,0.02449142,38863.0,38861.0,0.3]
[1646573442873,0.01949142,38863.0,38862.0,0.19402278]
[1646573443274,0.0021,38866.0,38862.0,0.29402278]
[1646573443478,2.6443,38880.0,38867.0,1.15]
[1646573443479,2.0,38880.0,38867.0,1.15]
[1646573443685,2.0,38880.0,38869.0,0.82562871]
[1646573443879,2.0,38880.0,38873.0,0.00418633]
[1646573444078,2.0,38880.0,38877.0,0.00418633]
[1646573444278,0.001,38886.0,38877.0,0.00418633]
[1646573444279,0.001,38886.0,38880.0,1.15]
[1646573444580,0.02873789,38890.0,38883.0,0.00418633]
[1646573444581,0.02483789,38890.0,38883.0,0.00418633]
[1646573444778,0.02483789,38890.0,38876.0,0.1]
[1646573444779,0.02483789,38890.0,38880.0,0.192961]
[1646573445178,0.02483789,38890.0,38883.0,0.17778782]
[1646573445375,0.02483789,38890.0,38880.0,1.079661]
[1646573445638,0.02483789,38890.0,38881.0,0.06433598]
[1646573446135,0.02483789,38890.0,38882.0,0.7867]
[1646573446332,0.02483789,38890.0,38886.0,0.16405324]
[1646573446535,0.02483789,38890.0,38887.0,0.3]
[1646573446735,0.02483789,38890.0,38887.0,0.428645]
[1646573446934,0.02483789,38890.0,38889.0,0.00418633]
[1646573447438,0.0011,38898.0,38891.0,0.064326]
[1646573447635,0.0011,38898.0,38892.0,0.3]
[1646573447838,0.0011,38898.0,38891.0,0.064326]
[1646573448239,0.0011,38898.0,38883.0,0.01153]
[1646573448240,0.07486903,38892.0,38884.0,0.01153]
[1646573448540,0.15,38890.0,38884.0,0.01153]
[1646573448739,0.15,38886.0,38879.0,0.5]
[1646573448934,0.15,38886.0,38873.0,0.06287]
[1646573448935,0.15,38884.0,38878.0,0.006]
[1646573449134,0.278725,38892.0,38882.0,0.00418633]
[1646573449378,0.15,38892.0,38881.0,0.19874271]
[1646573449582,0.18868031,38895.0,38883.0,0.064339]
[1646573449777,0.15,38893.0,38883.0,0.064339]
[1646573449978,0.32593,38892.0,38878.0,0.006]
[1646573450178,0.0703565,38886.0,38876.0,0.128686]
[1646573450481,0.0703565,38886.0,38877.0,0.3]
[1646573450679,0.2203565,38886.0,38877.0,0.3]
[1646573450980,0.2203565,38886.0,38882.0,0.68702693]
[1646573451177,0.00013829,38887.0,38882.0,0.68702693]
[1646573451777,0.18868031,38895.0,38882.0,0.68702693]
[1646573451977,0.0002451,38886.0,38883.0,0.3]
[1646573452176,0.0002451,38886.0,38882.0,0.68702693]
[1646573453030,0.02593,38889.0,38882.0,0.68702693]
[1646573453229,0.0002451,38886.0,38882.0,0.68702693]
[1646573453429,0.15605164,38886.0,38882.0,0.68702693]
[1646573453630,0.15582649,38884.0,38882.0,0.68702693]
[1646573453828,0.15605164,38886.0,38883.0,0.00418633]
[1646573454027,0.15605164,38886.0,38882.0,0.68702693]
[1646573454229,0.15580654,38886.0,38882.0,0.68702693]
[1646573454432,0.0002451,38885.0,38882.0,0.68702693]
[1646573454629,0.0002451,38885.0,38884.0,0.00418633]
[1646573454830,0.15947097,38885.0,38884.0,0.00418633]
[1646573455234,0.22813773,38885.0,38884.0,0.00418633]
[1646573455431,0.15580654,38886.0,38884.0,0.00418633]
[1646573455634,0.15604363,38886.0,38882.0,0.68702693]
[1646573456236,0.15604363,38886.0,38876.0,0.001]
[1646573456237,0.128755,38882.0,38876.0,0.001]
[1646573456434,0.02593,38879.0,38871.0,0.01153]
[1646573456636,0.32593,38879.0,38871.0,0.01153]
[1646573456876,0.06573827,38878.0,38871.0,0.01153]
[1646573457075,0.09166827,38878.0,38871.0,0.01453]
[1646573457477,0.22757849,38872.0,38871.0,0.01453]
[1646573457676,0.22757849,38872.0,38871.0,0.01871633]
[1646573458182,0.15581959,38872.0,38871.0,0.01571633]
[1646573458582,0.45581959,38872.0,38871.0,0.10418633]
[1646573458878,0.15581959,38872.0,38871.0,0.10418633]
[1646573459780,0.15581959,38872.0,38871.0,0.1]
[1646573459781,0.52317651,38872.0,38871.0,0.1]
[1646573460627,0.70472697,38872.0,38871.0,0.1]
[1646573460826,0.40472697,38872.0,38871.0,0.1]
[1646573461223,0.70472697,38872.0,38871.0,0.1]
[1646573461422,0.40472697,38872.0,38871.0,0.1]
[1646573462025,0.22317651,38872.0,38871.0,0.1]
[1646573462424,0.15023767,38873.0,38871.0,0.1]
[1646573462626,0.15,38881.0,38871.0,0.1]
[1646573462825,0.15,38883.0,38871.0,0.1]
[1646573463024,0.00023763,38873.0,38871.0,0.1]
[1646573463824,0.24470851,38876.0,38871.0,0.1]
[1646573464026,0.00023763,38874.0,38871.0,0.1]
[1646573464286,0.15,38872.0,38871.0,0.1]
[1646573464581,0.15,38872.0,38871.0,0.10025741]
[1646573464882,0.00023763,38874.0,38871.0,0.10025741]
[1646573464883,0.15023763,38874.0,38871.0,0.10025741]
[1646573465078,0.15,38874.0,38871.0,0.1]
[1646573465279,0.00023763,38873.0,38871.0,0.1]
[1646573466280,0.20534996,38874.0,38871.0,0.1]
[1646573466480,0.20558759,38874.0,38871.0,0.1]
[1646573466686,0.00023763,38874.0,38871.0,0.1]
[1646573467380,0.18032851,38876.0,38871.0,0.1]
[1646573467784,0.064374,38880.0,38871.0,0.1]
[1646573467785,0.00023763,38874.0,38871.0,0.1]
[1646573468027,0.00023763,38874.0,38873.0,0.00025739]
[1646573468327,0.20023763,38874.0,38873.0,0.00025739]
[1646573468730,0.2,38874.0,38873.0,0.00025739]
[1646573469527,0.2,38874.0,38871.0,0.1]
[1646573471231,0.20023763,38874.0,38871.0,0.1]
[1646573472174,0.2,38874.0,38871.0,0.1]
[1646573472576,0.20023763,38874.0,38871.0,0.1]
[1646573472776,0.41224981,38874.0,38871.0,0.1]
[1646573473377,0.41201218,38874.0,38871.0,0.1]
[1646573473578,0.47354458,38874.0,38871.0,0.1]
[1646573473781,0.47378221,38874.0,38871.0,0.1]
[1646573474179,0.41224981,38874.0,38871.0,0.1]
[1646573474579,0.41201218,38874.0,38871.0,0.1]
[1646573474779,0.41224981,38874.0,38871.0,0.1]
[1646573475181,0.41224981,38874.0,38855.0,0.7867]
[1646573475182,1.15,38871.0,38866.0,0.001]
[1646573475383,0.3,38870.0,38866.0,0.001]
[1646573475633,0.15,38868.0,38866.0,0.001]
[1646573476028,0.3,38867.0,38866.0,0.001]
[1646573476229,0.6028652,38867.0,38866.0,0.001]
[1646573476430,0.80286519,38867.0,38866.0,0.001]
[1646573476626,0.50877177,38867.0,38866.0,0.001]
[1646573476827,0.02593,38866.0,38846.0,0.25484582]
[1646573477029,0.02593,38860.0,38845.0,0.4686]
[1646573477228,0.02593,38860.0,38842.0,0.1532]
[1646573477528,0.02593,38858.0,38845.0,0.25514137]
[1646573477726,0.15,38861.0,38845.0,0.25514137]
[1646573478029,0.05455325,38860.0,38848.0,0.19153955]
[1646573478230,0.15,38863.0,38849.0,0.26043632]
[1646573478428,0.15,38863.0,38849.0,0.4368]
[1646573478730,0.00023768,38855.0,38849.0,0.4368]
[1646573478932,0.00023768,38855.0,38853.0,0.00025752]
[1646573479130,0.00023768,38855.0,38849.0,0.61733537]
[1646573479379,0.09075427,38861.0,38853.0,0.00025753]
[1646573479576,0.09075427,38861.0,38850.0,0.3]
[1646573479777,0.00023768,38856.0,38849.0,0.4368]
[1646573480579,0.02593,38857.0,38849.0,0.4368]
[1646573480580,0.18777602,38857.0,38849.0,0.4368]
[1646573480979,0.00023769,38854.0,38846.0,0.003]
[1646573481380,0.15486673,38851.0,38846.0,0.003]
[1646573481591,0.3,38850.0,38846.0,0.003]
[1646573481781,0.17582583,38847.0,38846.0,0.003]
[1646573481980,0.47582583,38847.0,38846.0,0.00718633]
[1646573482178,0.47582583,38847.0,38846.0,0.00428633]
[1646573482382,0.47582583,38847.0,38846.0,0.00418633]
[1646573483726,0.17582583,38847.0,38846.0,0.00418633]
[1646573485427,0.22995058,38847.0,38846.0,0.00418633]
[1646573486328,0.01099616,38849.0,38846.0,0.00418633]
[1646573486528,0.02593,38847.0,38839.0,0.20265397]
[1646573486778,0.17811918,38848.0,38843.0,0.00418633]
[1646573486975,0.17811918,38848.0,38839.0,0.20265397]
[1646573487175,0.17811918,38848.0,38832.0,0.15]
[1646573487378,0.3,38847.0,38832.0,0.15]
[1646573487575,0.08615551,38843.0,38836.0,0.18852858]
[1646573487774,0.3,38847.0,38840.0,0.00418633]
[1646573487974,0.41099616,38849.0,38844.0,0.00418633]
[1646573488173,0.41099616,38849.0,38836.0,0.20043657]
[1646573488374,0.064428,38847.0,38836.0,0.20043657]
[1646573488675,0.128881,38845.0,38840.0,0.00418633]
[1646573488875,0.02593,38844.0,38829.0,0.00101221]
[1646573489075,0.02593,38844.0,38835.0,0.19739267]
[1646573489076,0.15382553,38842.0,38835.0,0.19739267]
[1646573489278,0.15382553,38842.0,38839.0,0.00418633]
[1646573489477,0.19932806,38845.0,38841.0,0.00418633]
[1646573489680,0.02593,38844.0,38835.0,0.003]
[1646573489877,0.07044706,38845.0,38839.0,0.00418633]
[1646573490078,0.07044706,38845.0,38843.0,0.00418633]
[1646573490276,0.07044706,38845.0,38844.0,0.00418633]
[1646573490522,0.15296295,38845.0,38844.0,0.00418633]
[1646573491624,0.02593,38840.0,38830.0,0.01286]
[1646573491828,0.32593,38840.0,38829.0,0.00045957]
[1646573492025,0.02593,38840.0,38829.0,0.30993861]
[1646573492624,0.02593,38840.0,38832.0,0.181116]
[1646573493023,0.064439,38840.0,38832.0,0.181116]
[1646573493224,0.02593,38842.0,38832.0,0.331116]
[1646573493426,0.6612906,38849.0,38835.0,0.15]
[1646573493427,0.65069616,38849.0,38835.0,0.15]
[1646573493624,0.4847,38849.0,38839.0,0.15]
[1646573493824,0.4686,38856.0,38842.0,0.15]
[1646573494024,0.0254895,38858.0,38846.0,0.19495434]
[1646573494275,0.21545216,38860.0,38846.0,0.19495434]
[1646573494276,0.0254895,38853.0,38846.0,0.2109168]
[1646573494672,0.0254895,38853.0,38845.0,0.15]
[1646573494873,0.0254895,38853.0,38837.0,0.277016]
[1646573495077,0.0254895,38853.0,38842.0,0.002]
[1646573495274,0.19040142,38848.0,38842.0,0.002]
[1646573495876,0.3,38852.0,38842.0,0.002]
[1646573496076,2.7197877,38853.0,38842.0,0.002]
[1646573496374,0.1481,38858.0,38842.0,0.002]
[1646573496375,0.193299,38855.0,38842.0,0.002]
[1646573496575,0.00025253,38854.0,38842.0,0.152]
[1646573496778,0.15724665,38852.0,38842.0,0.152]
[1646573497078,0.15724665,38852.0,38842.0,0.33095128]
[1646573497676,0.3,38860.0,38842.0,0.18095128]
[1646573497879,0.4743,38864.0,38843.0,0.73415697]
[1646573497880,0.00025253,38854.0,38843.0,0.73415697]
[1646573498130,0.00025253,38854.0,38851.0,0.15]
[1646573498330,0.00025253,38854.0,38843.0,0.4368]
[1646573498331,0.00025253,38854.0,38853.0,0.15]
[1646573498731,0.064402,38863.0,38853.0,0.30374987]
[1646573498928,0.064402,38863.0,38853.0,0.15]
[1646573498929,0.00025255,38855.0,38853.0,0.15]
[1646573499129,0.00025255,38855.0,38854.0,0.00025752]
[1646573499733,0.00025255,38855.0,38853.0,0.15]
[1646573500030,0.21360673,38857.0,38853.0,0.15]
[1646573500230,0.00024895,38856.0,38853.0,0.15]
[1646573501130,0.21360673,38857.0,38853.0,0.15]
[1646573501332,0.21360673,38857.0,38851.0,0.15]
[1646573501634,0.064417,38855.0,38851.0,0.15]
[1646573501875,0.18792016,38854.0,38851.0,0.15]
[1646573502080,0.18792016,38854.0,38850.0,0.004]
[1646573502279,0.18792016,38854.0,38849.0,0.15]
[1646573502576,0.18792016,38854.0,38844.0,0.161]
[1646573502577,0.18816911,38854.0,38848.0,0.15]
[1646573502974,0.18816911,38854.0,38844.0,0.161]
[1646573503175,0.18816911,38854.0,38846.0,0.001]
[1646573503378,0.20310102,38850.0,38846.0,0.001]
[1646573503977,0.20157254,38847.0,38846.0,0.001]
[1646573504377,0.20157254,38847.0,38841.0,0.15]
[1646573504976,0.20157254,38847.0,38838.0,0.15]
[1646573505179,0.50157254,38847.0,38840.0,0.003]
[1646573505378,0.33044154,38847.0,38840.0,0.003]
[1646573505625,0.24163083,38853.0,38840.0,0.003]
[1646573505626,0.07525072,38853.0,38840.0,0.153]
[1646573505825,0.21321193,38854.0,38840.0,0.153]
[1646573506025,0.13770849,38854.0,38840.0,0.153]
[1646573506224,0.13784638,38854.0,38840.0,0.003]
[1646573506424,0.13784638,38854.0,38840.0,0.15]
[1646573506624,0.064427,38848.0,38841.0,0.3]
[1646573506825,0.02593,38853.0,38840.0,0.35617648]
[1646573507025,0.02593,38853.0,38841.0,0.3]
[1646573507225,0.12593,38853.0,38841.0,0.3]
[1646573507430,0.1,38853.0,38841.0,0.3]
[1646573507625,0.23799216,38850.0,38841.0,0.3]
[1646573507827,0.064426,38848.0,38840.0,0.15]
[1646573508428,0.21206216,38850.0,38840.0,0.15]
[1646573510076,0.21206216,38850.0,38842.0,0.19829306]
[1646573510272,0.12593,38852.0,38842.0,0.19829306]
[1646573510473,0.12593,38852.0,38840.0,0.15]
[1646573510873,0.02593,38853.0,38839.0,0.18273572]
[1646573511075,0.090351,38852.0,38842.0,0.15]
[1646573511272,0.090351,38852.0,38837.0,0.003]
[1646573511273,0.05977541,38851.0,38840.0,0.15]
[1646573511477,0.15156305,38845.0,38838.0,0.20674029]
[1646573511676,0.18863141,38851.0,38842.0,0.0002576]
[1646573511677,0.32593,38850.0,38842.0,0.0002576]
[1646573511873,0.32593,38850.0,38838.0,0.15]
[1646573512274,0.21633447,38847.0,38838.0,0.15]
[1646573512476,0.128876,38845.0,38838.0,0.15]
[1646573512676,0.21148304,38842.0,38836.0,0.22524]
[1646573512878,0.128876,38845.0,38840.0,0.00418633]
[1646573513121,0.128876,38845.0,38836.0,0.07524]
[1646573513920,0.18308579,38843.0,38836.0,0.37901601]
[1646573514122,0.064436,38842.0,38836.0,0.22901601]
[1646573514421,0.064436,38842.0,38840.0,0.00418633]
[1646573514622,0.064436,38842.0,38841.0,0.00418633]
[1646573515325,0.128876,38845.0,38841.0,0.00418633]
[1646573515523,0.128876,38845.0,38838.0,0.15]
[1646573516623,0.064431,38846.0,38838.0,0.15]
[1646573516881,0.064431,38846.0,38836.0,0.07524]
[1646573517080,0.19633159,38845.0,38838.0,0.19617563]
[1646573517279,0.19633159,38845.0,38836.0,0.22524]
[1646573517681,0.064431,38846.0,38836.0,0.22524]
[1646573518080,0.064431,38846.0,38836.0,0.07524]
[1646573518682,0.19776846,38843.0,38836.0,0.24754636]
[1646573518985,0.064431,38846.0,38836.0,0.24754636]
[1646573519182,0.064431,38846.0,38837.0,0.3]
[1646573519382,0.090361,38846.0,38836.0,0.24754636]
[1646573519584,0.064431,38846.0,38837.0,0.3]
[1646573519784,0.16351672,38844.0,38837.0,0.3]
[1646573519985,0.064431,38846.0,38837.0,0.3]
[1646573520830,0.26637891,38854.0,38845.0,0.17593]
[1646573520831,0.07757042,38854.0,38845.0,0.17593]
[1646573521030,0.07757042,38854.0,38853.0,0.15]
[1646573521031,0.00023709,38854.0,38853.0,0.15]
[1646573521427,0.07733333,38862.0,38854.0,0.5]
[1646573521628,0.17436313,38859.0,38854.0,0.3]
[1646573521826,0.17436313,38859.0,38853.0,0.15]
[1646573521827,0.00023712,38855.0,38853.0,0.15]
[1646573522028,0.00023712,38855.0,38854.0,0.00025752]
[1646573522227,0.21052112,38855.0,38854.0,0.00025752]
[1646573522429,0.21052112,38855.0,38848.0,0.15]
[1646573522631,0.21052112,38855.0,38843.0,0.15]
[1646573522828,0.21052112,38855.0,38842.0,0.7918]
[1646573522829,0.236214,38855.0,38842.0,0.7918]
[1646573523030,0.02593,38854.0,38843.0,0.15]
[1646573523228,0.1973989,38849.0,38847.0,0.005]
[1646573524381,0.17357159,38848.0,38841.0,0.02729]
[1646573524778,0.23800259,38848.0,38841.0,0.02729]
[1646573526379,0.17357159,38848.0,38841.0,0.02729]
[1646573526580,0.1973989,38849.0,38841.0,0.02729]
[1646573527579,0.17822502,38847.0,38841.0,0.02729]
[1646573528626,0.06443,38847.0,38841.0,0.02729]
[1646573529327,0.05904036,38845.0,38841.0,0.02729]
[1646573529528,0.17774339,38843.0,38841.0,0.02729]
[1646573529729,0.06443,38847.0,38841.0,0.02729]
[1646573531129,0.34040029,38845.0,38841.0,0.02729]
[1646573531780,0.34040029,38845.0,38838.0,0.004]
[1646573532381,0.16763759,38845.0,38838.0,0.004]
[1646573532579,0.06443,38847.0,38842.0,0.0002576]
[1646573532879,0.06443,38847.0,38838.0,0.004]
[1646573533078,0.06443,38847.0,38837.0,0.005]
[1646573533282,0.06443,38847.0,38839.0,0.15]
[1646573533479,0.1796275,38847.0,38840.0,0.3]
[1646573533880,0.1796275,38847.0,38837.0,0.005]
[1646573534079,0.1796275,38847.0,38838.0,0.15]
[1646573534279,0.1796275,38847.0,38837.0,0.005]
[1646573534679,0.17669365,38841.0,38837.0,0.005]
[1646573534880,0.2188904,38844.0,38840.0,0.00025759]
[1646573535080,0.064432,38846.0,38843.0,0.00025756]
[1646573535282,0.064432,38846.0,38845.0,0.00025759]
[1646573535930,0.23832202,38846.0,38845.0,0.00025759]
[1646573536128,0.02547263,38862.0,38846.0,1.15]
[1646573536340,0.03837442,38866.0,38852.0,0.03073236]
[1646573536532,0.11606572,38866.0,38853.0,0.43214184]
[1646573536732,0.064388,38876.0,38865.0,0.15]
[1646573536930,0.0776913,38878.0,38867.0,0.15]
[1646573537130,0.41941537,38874.0,38870.0,0.15]
[1646573537431,0.41941537,38874.0,38873.0,0.00025736]
[1646573537630,0.41941537,38874.0,38873.0,0.15025736]
[1646573537831,0.41941537,38874.0,38859.0,0.3]
[1646573538032,0.41941537,38874.0,38845.0,0.45065658]
[1646573538033,0.44534537,38874.0,38854.0,0.9646]
[1646573538229,0.44534537,38874.0,38855.0,0.4544]
[1646573538433,0.07042702,38866.0,38855.0,0.4544]
[1646573538631,0.44534537,38874.0,38855.0,0.1544]
[1646573538833,0.2,38874.0,38871.0,0.15]
[1646573539034,0.2,38874.0,38861.0,0.34376386]
[1646573539302,0.2,38874.0,38866.0,0.15]
[1646573539499,0.2,38874.0,38870.0,0.00025738]
[1646573539700,0.2,38874.0,38873.0,0.00025738]
[1646573540902,0.2,38874.0,38873.0,0.02593]
[1646573541108,0.2,38874.0,38872.0,0.006]
[1646573541402,0.2,38874.0,38873.0,0.17618733]
[1646573541602,0.2,38874.0,38873.0,0.47618733]
[1646573541804,0.195,38874.0,38873.0,0.47618733]
[1646573542003,0.195,38874.0,38873.0,0.56724733]
[1646573542004,0.06467977,38874.0,38873.0,0.56724733]
[1646573542207,0.0011,38882.0,38877.0,0.81263]
[1646573542406,0.0022,38890.0,38883.0,0.02593]
[1646573542603,0.0022,38890.0,38885.0,0.15025721]
[1646573542803,0.0022,38890.0,38885.0,0.45025721]
[1646573543235,0.0021,38889.0,38887.0,1.17593]
[1646573543539,0.0022,38895.0,38887.0,1.17593]
[1646573543540,0.001,38911.0,38893.0,1.15]
[1646573543745,0.001,38911.0,38895.0,0.17960161]
[1646573543746,0.03776358,38903.0,38895.0,0.17960161]
[1646573543933,0.03776358,38903.0,38895.0,0.47618718]
[1646573544334,0.15645965,38901.0,38895.0,0.47618718]
[1646573544537,0.0022,38901.0,38895.0,0.00025718]
[1646573545638,0.001,38918.0,38900.0,0.81263]
[1646573545839,0.02664168,38917.0,38913.0,0.15]
[1646573546038,0.00482353,38927.0,38915.0,0.02593]
[1646573546242,0.22612858,38944.0,38926.0,0.15]
[1646573546446,0.22612858,38944.0,38919.0,1.35]
[1646573546447,0.12612858,38944.0,38939.0,0.15]
[1646573546638,0.180464,38945.0,38940.0,0.3]
[1646573546902,0.180464,38945.0,38944.0,0.00025692]
[1646573547097,0.175464,38945.0,38944.0,0.00025692]
[1646573547299,0.175464,38945.0,38943.0,0.1489]
[1646573547598,0.175464,38945.0,38937.0,0.01437822]
[1646573547800,0.175464,38945.0,38936.0,0.006]
[1646573547801,0.17883078,38939.0,38936.0,0.006]
[1646573548496,0.17883078,38939.0,38938.0,0.00025695]
[1646573548695,0.16701178,38942.0,38938.0,0.00025695]
[1646573548899,0.16701178,38942.0,38926.0,0.1478]
[1646573549096,0.16701178,38942.0,38928.0,0.1478]
[1646573549297,0.175464,38945.0,38935.0,0.002]
[1646573549798,0.175464,38945.0,38929.0,0.24448412]
[1646573549998,0.175464,38945.0,38923.0,0.01284]
[1646573549999,1.45,38944.0,38923.0,0.01284]
[1646573550407,0.0022,38939.0,38923.0,0.01284]
[1646573550631,0.00243624,38935.0,38923.0,0.01284]
[1646573551031,0.0022,38934.0,38927.0,0.00367161]
[1646573551228,0.0022,38934.0,38923.0,0.01284]
[1646573551229,0.0022,38934.0,38931.0,0.00025696]
[1646573551434,0.00023624,38935.0,38933.0,0.00367161]
[1646573551629,0.0081024,38938.0,38923.0,0.01284]
[1646573551630,0.0081024,38938.0,38934.0,0.00367161]
[1646573551833,0.00023625,38932.0,38920.0,0.2468889]
[1646573552135,0.00023625,38932.0,38924.0,0.00367161]
[1646573552329,0.00023625,38932.0,38928.0,0.00367161]
[1646573552529,0.00023625,38932.0,38931.0,0.00367161]
[1646573552729,0.06590302,38940.0,38931.0,0.00367161]
[1646573552930,0.0034549,38929.0,38925.0,0.14560055]
[1646573553132,0.0034549,38929.0,38928.0,0.00367161]
[1646573553331,0.0034549,38929.0,38928.0,0.00667161]
[1646573553530,0.0034549,38929.0,38928.0,0.15227216]
[1646573554132,0.0034549,38929.0,38928.0,0.00667161]
[1646573554587,0.0034549,38929.0,38928.0,0.00367161]
[1646573555591,0.00172324,38934.0,38929.0,1.15]
[1646573555792,0.00172324,38934.0,38933.0,0.00367161]
[1646573555992,0.00439945,38944.0,38933.0,0.00367161]
[1646573555993,0.17313194,38945.0,38934.0,0.75]
[1646573556197,0.17313194,38945.0,38935.0,0.3]
[1646573556392,0.17313194,38945.0,38926.0,0.3]
[1646573556791,0.07066997,38938.0,38926.0,0.3]